{"text_format":"1","workbook":"xlsx","n_sheets":2,"sheets":["Eingabemaske","Beiträge"],"not_rendered":{"charts":0,"images":2,"macros":1,"external_links":0,"defined_names":1,"comments":0,"pivot_tables":0},"unopened":[],"bounds":{"document_bytes":16777216,"sheet_cells":100000,"rows_first":2000,"rows_last":500,"rows_between":2000,"halvings":0,"cell_chars":16384,"cell_head_chars":4096},"cells_cut":0,"cells_raw":0,"read":"whole","date_system":"1900"}

{"sheet":"Eingabemaske","index":0,"n_rows":46,"n_cols":7,"rows_kept":46,"cut":false,"hidden":false,"merged":[]}
[]
[]
[null,null,"Firma Musterfirma"]
[]
[null,null,null,"Beginn des Gruppenvertrages"]
[]
[null,null,null,{"$f":"IF(C7=\"\",\"Ihr Geburtsjahr\",IF(AND(Beiträge!C1=TRUE,Beiträge!C5<21),\"Eine Berechnung kann erst ab Alter 21 erfolgen\",\"Ihr Geburtsjahr\"))","v":"Ihr Geburtsjahr"}]
[]
[null,null,null,{"$f":"IF(C9=\"\",\"Alter für den geplanten Ruhestand (Bezug Altersrente)\",IF(C9<60,\"Bitte überprüfen Sie Ihre Eingabe\",\"Alter für den geplanten Ruhestand (Bezug Altersrente)\"))","v":"Alter für den geplanten Ruhestand (Bezug Altersrente)"}]
[]
[]
[null,null,"Übernimmt Ihr Arbeitgeber die Beiträge?"]
[]
[null,null,null,"Ja, mein Arbeitgeber übernimmt die Beiträge für meine stationäre Zusatzversicherung (bKV-K II)."]
[]
[null,null,null,"Nein, ich selbst zahle die Beiträge für meine stationäre Zusatzversicherung (ZbKV-K II)."]
[]
[]
[null,null,"Möchten Sie eine Stabilität der Beiträge im Rentenalter (SBR)*?"]
[]
[null,null,null,"Ja"]
[]
[]
[null,null,"Beitragsrechner:"]
[]
[null,null,null,{"$f":"IF(AND(Beiträge!C1=TRUE,Beiträge!C2=TRUE),\"Bitte überprüfen Sie Ihre Eingabe\",IF(AND(Beiträge!C3=TRUE,Beiträge!C4=TRUE),\"Bitte überprüfen Sie Ihre Eingabe\",IF(Beiträge!C5<21,\"Für dieses Alter ist der Tarif noch nicht abschließbar\",\"während des Erwerbslebens\")))","v":"während des Erwerbslebens"}]
[null,null,null,"Alter**",{"$f":"IF(AND(Beiträge!C1=FALSE,Beiträge!C2=FALSE),\"\",IF(D$28=\"\",\"\",IF(AND(Beiträge!C1=TRUE,Beiträge!C2=TRUE),\"\",IF(AND(Beiträge!C1=TRUE,Beiträge!C2=FALSE,Beiträge!C3=TRUE,Beiträge!C4=FALSE),\"Monatsbeitrag bKV-K II\",IF(AND(Beiträge!C1=TRUE,Beiträge!C2=FALSE,Beiträge!C3=FALSE,Beiträge!C4=TRUE),\"Monatsbeitrag bKV-K II\",IF(AND(Beiträge!C1=TRUE,Beiträge!C2=FALSE,Beiträge!C3=FALSE,Beiträge!C4=FALSE),\"Monatsbeitrag bKV-K II\",IF(AND(Beiträge!C1=FALSE,Beiträge!C2=TRUE,Beiträge!C3=TRUE,Beiträge!C4=FALSE),\"Monatsbeitrag ZbKV-K II mit Beitragssprüngen\",IF(AND(Beiträge!C1=FALSE,Beiträge!C2=TRUE,Beiträge!C3=FALSE,Beiträge!C4=TRUE),\"Monatsbeitrag ZbKV-K II mit Beitragssprüngen\",IF(AND(Beiträge!C1=FALSE,Beiträge!C2=TRUE,Beiträge!C3=FALSE,Beiträge!C4=FALSE),\"Monatsbeitrag ZbKV-K II mit Beitragssprüngen\",\"\")))))))))","v":""},{"$f":"IF(AND(Beiträge!C1=FALSE,Beiträge!C2=FALSE),\"\",IF(AND(Beiträge!C3=FALSE,Beiträge!C4=FALSE),\"\",IF(AND(Beiträge!C3=TRUE,Beiträge!C4=TRUE),\"\",IF(OR(Beiträge!C3=TRUE,Beiträge!C4=TRUE),\"Beitrag für \nSBR\",\"\"))))","v":""},{"$f":"IF(AND(Beiträge!C1=FALSE,Beiträge!C2=FALSE),\"\",IF(AND(Beiträge!C3=TRUE,Beiträge!C4=TRUE),\"\",IF(AND(Beiträge!C3=FALSE,Beiträge!C4=FALSE),\"Summe\",IF(OR(Beiträge!C2=TRUE,Beiträge!C1=TRUE),\"Summe\"))))","v":""}]
[null,null,null,{"$f":"IF(C7=\"\",\"\",IF(Beiträge!C5<21,\"\",IF(Beiträge!C5>=Beiträge!C7,\"\",IF(AND(Beiträge!C1=FALSE,Beiträge!C2=FALSE,Beiträge!C3=FALSE,Beiträge!C4=FALSE),\"\",IF(AND(Beiträge!C1=FALSE,Beiträge!C2=FALSE,Beiträge!C3=FALSE,Beiträge!C4=TRUE),\"\",IF(AND(Beiträge!C1=FALSE,Beiträge!C2=FALSE,Beiträge!C3=TRUE,Beiträge!C4=FALSE),\"\",IF(AND(Beiträge!C1=TRUE,Beiträge!C2=FALSE,Beiträge!C3=TRUE,Beiträge!C4=TRUE),\"\",IF(AND(Beiträge!C1=FALSE,Beiträge!C2=TRUE,Beiträge!C3=TRUE,Beiträge!C4=TRUE),\"\",IF(AND(Beiträge!C1=TRUE,Beiträge!C2=TRUE),\"\",\"Alter \"&Beiträge!C5)))))))))","v":""},{"$f":"IF(D28=\"\",\"\",IF(Beiträge!C5>=Beiträge!C7,\"\",IF(Beiträge!C5<21,\"\",IF(AND(Beiträge!C1=FALSE,Beiträge!C2=FALSE,Beiträge!C3=FALSE,Beiträge!C4=FALSE),\"\",IF(AND(Beiträge!C1=FALSE,Beiträge!C2=FALSE,Beiträge!C3=FALSE,Beiträge!C4=TRUE),\"\",IF(AND(Beiträge!C1=FALSE,Beiträge!C2=FALSE,Beiträge!C3=TRUE,Beiträge!C4=FALSE),\"\",IF(AND(Beiträge!C1=TRUE,Beiträge!C2=FALSE,Beiträge!C3=TRUE,Beiträge!C4=TRUE),\"\",IF(AND(Beiträge!C1=FALSE,Beiträge!C2=TRUE,Beiträge!C3=TRUE,Beiträge!C4=TRUE),\"\",IF(AND(Beiträge!C1=TRUE,Beiträge!C2=TRUE),\"\",IF(Beiträge!C1=TRUE,0,VLOOKUP(Beiträge!C5,Beiträge!A:C,3,0)))))))))))","v":""},{"$f":"IF(Beiträge!$C$5<21,\"\",IF(Beiträge!C5>=Beiträge!C7,\"\",IF(AND(Beiträge!C1=FALSE,Beiträge!C2=FALSE,Beiträge!C3=FALSE,Beiträge!C4=FALSE),\"\",IF(AND(Beiträge!C1=FALSE,Beiträge!C2=TRUE,Beiträge!C3=FALSE,Beiträge!C4=FALSE),\"\",IF(AND(Beiträge!C1=FALSE,Beiträge!C2=FALSE,Beiträge!C3=FALSE,Beiträge!C4=TRUE),\"\",IF(AND(Beiträge!C1=FALSE,Beiträge!C2=FALSE,Beiträge!C3=TRUE,Beiträge!C4=FALSE),\"\",IF(AND(Beiträge!C1=FALSE,Beiträge!C2=FALSE,Beiträge!C3=TRUE,Beiträge!C4=TRUE),\"\",IF(AND(Beiträge!C1=TRUE,Beiträge!C2=TRUE,Beiträge!C3=TRUE,Beiträge!C4=TRUE),\"\",IF(AND(Beiträge!C1=TRUE,Beiträge!C2=TRUE,Beiträge!C3=FALSE,Beiträge!C4=TRUE),\"\",IF(AND(Beiträge!C1=TRUE,Beiträge!C2=TRUE,Beiträge!C3=TRUE,Beiträge!C4=FALSE),\"\",IF(AND(Beiträge!C1=TRUE,Beiträge!C2=FALSE,Beiträge!C3=FALSE,Beiträge!C4=FALSE),\"\",IF(AND(Beiträge!C1=TRUE,Beiträge!C2=TRUE,Beiträge!C3=FALSE,Beiträge!C4=FALSE),\"\",IF(AND(Beiträge!C1=FALSE,Beiträge!C2=TRUE,Beiträge!C3=TRUE,Beiträge!C4=TRUE),\"\",IF(AND(Beiträge!C1=TRUE,Beiträge!C2=FALSE,Beiträge!C3=TRUE,Beiträge!C4=TRUE),\"\",IF(AND(Beiträge!C1=FALSE,Beiträge!C2=TRUE,Beiträge!C3=TRUE,Beiträge!C4=FALSE),0,IF(AND(Beiträge!C1=TRUE,Beiträge!C2=FALSE,Beiträge!C3=TRUE,Beiträge!C4=FALSE),0,(VLOOKUP(Beiträge!$C$5,Beiträge!F:J,5,0))))))))))))))))))","v":""},{"$f":"IF(D28=\"\",\"\",IF(Beiträge!C$5<21,\"\",IF(Beiträge!C5>=Beiträge!C7,\"\",IF(AND(Beiträge!C1=FALSE,Beiträge!C2=FALSE,Beiträge!C3=FALSE,Beiträge!C4=FALSE),\"\",IF(AND(Beiträge!C1=TRUE,Beiträge!C2=FALSE,Beiträge!C3=FALSE,Beiträge!C4=FALSE),\"\",IF(AND(Beiträge!C1=FALSE,Beiträge!C2=FALSE),\"\",IF(AND(Beiträge!C1=FALSE,Beiträge!C2=FALSE,Beiträge!C3=FALSE,Beiträge!C4=TRUE),\"\",IF(AND(Beiträge!C1=TRUE,Beiträge!C2=TRUE),\"\",IF(AND(Beiträge!C1=FALSE,Beiträge!C2=TRUE,Beiträge!C3=TRUE,Beiträge!C4=TRUE),\"\",IF(AND(Beiträge!C1=TRUE,Beiträge!C2=FALSE,Beiträge!C3=TRUE,Beiträge!C4=TRUE),\"\",IF(AND(Beiträge!C3=FALSE,Beiträge!C4=FALSE),E28,F28+E28)))))))))))","v":""}]
[null,null,null,{"$f":"IF(AND(Beiträge!C1=FALSE,Beiträge!C2=FALSE,Beiträge!C3=FALSE,Beiträge!C4=FALSE),\"\",IF(Beiträge!C$5+Beiträge!C$6>=C$9,\"\",IF(D$28=\"\",\"\",\"Alter \"&Beiträge!C$5+Beiträge!C$6)))","v":""},{"$f":"IF(D29=\"\",\"\",IF(Beiträge!C5<21,\"\",IF(Beiträge!C5+Beiträge!C$6>=Beiträge!C7,\"\",IF(AND(Beiträge!C1=FALSE,Beiträge!C2=FALSE,Beiträge!C3=FALSE,Beiträge!C4=FALSE),\"\",IF(AND(Beiträge!C1=FALSE,Beiträge!C2=FALSE,Beiträge!C3=FALSE,Beiträge!C4=TRUE),\"\",IF(AND(Beiträge!C1=FALSE,Beiträge!C2=FALSE,Beiträge!C3=TRUE,Beiträge!C4=FALSE),\"\",IF(AND(Beiträge!C1=TRUE,Beiträge!C2=FALSE,Beiträge!C3=TRUE,Beiträge!C4=TRUE),\"\",IF(AND(Beiträge!C1=FALSE,Beiträge!C2=TRUE,Beiträge!C3=TRUE,Beiträge!C4=TRUE),\"\",IF(AND(Beiträge!C1=TRUE,Beiträge!C2=TRUE),\"\",IF(Beiträge!C1=TRUE,0,VLOOKUP(Beiträge!C$5+Beiträge!C$6,Beiträge!A:C,3,0)))))))))))","v":""},{"$f":"IF(D29=\"\",\"\",IF(Beiträge!C5+Beiträge!C$6>=Beiträge!C7,\"\",IF(Beiträge!$C$5<21,\"\",IF(AND(Beiträge!C1=FALSE,Beiträge!C2=FALSE,Beiträge!C3=FALSE,Beiträge!C4=FALSE),\"\",IF(AND(Beiträge!C1=FALSE,Beiträge!C2=TRUE,Beiträge!C3=FALSE,Beiträge!C4=FALSE),\"\",IF(AND(Beiträge!C1=FALSE,Beiträge!C2=FALSE,Beiträge!C3=FALSE,Beiträge!C4=TRUE),\"\",IF(AND(Beiträge!C1=FALSE,Beiträge!C2=FALSE,Beiträge!C3=TRUE,Beiträge!C4=FALSE),\"\",IF(AND(Beiträge!C1=FALSE,Beiträge!C2=FALSE,Beiträge!C3=TRUE,Beiträge!C4=TRUE),\"\",IF(AND(Beiträge!C1=TRUE,Beiträge!C2=TRUE,Beiträge!C3=TRUE,Beiträge!C4=TRUE),\"\",IF(AND(Beiträge!C1=TRUE,Beiträge!C2=TRUE,Beiträge!C3=FALSE,Beiträge!C4=TRUE),\"\",IF(AND(Beiträge!C1=TRUE,Beiträge!C2=TRUE,Beiträge!C3=TRUE,Beiträge!C4=FALSE),\"\",IF(AND(Beiträge!C1=TRUE,Beiträge!C2=FALSE,Beiträge!C3=FALSE,Beiträge!C4=FALSE),\"\",IF(AND(Beiträge!C1=TRUE,Beiträge!C2=TRUE,Beiträge!C3=FALSE,Beiträge!C4=FALSE),\"\",IF(AND(Beiträge!C1=FALSE,Beiträge!C2=TRUE,Beiträge!C3=TRUE,Beiträge!C4=TRUE),\"\",IF(AND(Beiträge!C1=TRUE,Beiträge!C2=FALSE,Beiträge!C3=TRUE,Beiträge!C4=TRUE),\"\",IF(AND(Beiträge!C1=FALSE,Beiträge!C2=TRUE,Beiträge!C3=TRUE,Beiträge!C4=FALSE),0,IF(AND(Beiträge!C1=TRUE,Beiträge!C2=FALSE,Beiträge!C3=TRUE,Beiträge!C4=FALSE),0,(VLOOKUP(Beiträge!$C$5,Beiträge!F:J,5,0)))))))))))))))))))","v":""},{"$f":"IF(D29=\"\",\"\",IF(Beiträge!C5+Beiträge!C$6>=Beiträge!C7,\"\",IF(Beiträge!C$5<21,\"\",IF(AND(Beiträge!C1=FALSE,Beiträge!C2=FALSE,Beiträge!C3=FALSE,Beiträge!C4=FALSE),\"\",IF(AND(Beiträge!C1=TRUE,Beiträge!C2=FALSE,Beiträge!C3=FALSE,Beiträge!C4=FALSE),\"\",IF(AND(Beiträge!C1=FALSE,Beiträge!C2=FALSE),\"\",IF(AND(Beiträge!C1=FALSE,Beiträge!C2=FALSE,Beiträge!C3=FALSE,Beiträge!C4=TRUE),\"\",IF(AND(Beiträge!C1=TRUE,Beiträge!C2=TRUE),\"\",IF(AND(Beiträge!C1=FALSE,Beiträge!C2=TRUE,Beiträge!C3=TRUE,Beiträge!C4=TRUE),\"\",IF(AND(Beiträge!C1=TRUE,Beiträge!C2=FALSE,Beiträge!C3=TRUE,Beiträge!C4=TRUE),\"\",IF(AND(Beiträge!C3=FALSE,Beiträge!C4=FALSE),E29,F29+E29)))))))))))","v":""}]
[null,null,null,{"$f":"IF(AND(Beiträge!C1=FALSE,Beiträge!C2=FALSE,Beiträge!C3=FALSE,Beiträge!C4=FALSE),\"\",IF(Beiträge!C$5+Beiträge!C$6+5>=C$9,\"\",IF(D$28=\"\",\"\",\"Alter \"&Beiträge!C$5+Beiträge!C$6+5)))","v":""},{"$f":"IF(D30=\"\",\"\",IF(Beiträge!C5<21,\"\",IF(Beiträge!C5+Beiträge!C$6+5>=Beiträge!C7,\"\",IF(AND(Beiträge!C1=FALSE,Beiträge!C2=FALSE,Beiträge!C3=FALSE,Beiträge!C4=FALSE),\"\",IF(AND(Beiträge!C1=FALSE,Beiträge!C2=FALSE,Beiträge!C3=FALSE,Beiträge!C4=TRUE),\"\",IF(AND(Beiträge!C1=FALSE,Beiträge!C2=FALSE,Beiträge!C3=TRUE,Beiträge!C4=FALSE),\"\",IF(AND(Beiträge!C1=TRUE,Beiträge!C2=FALSE,Beiträge!C3=TRUE,Beiträge!C4=TRUE),\"\",IF(AND(Beiträge!C1=FALSE,Beiträge!C2=TRUE,Beiträge!C3=TRUE,Beiträge!C4=TRUE),\"\",IF(AND(Beiträge!C1=TRUE,Beiträge!C2=TRUE),\"\",IF(Beiträge!C1=TRUE,0,VLOOKUP(Beiträge!C$5+Beiträge!C$6+5,Beiträge!A:CF,3,0)))))))))))","v":""},{"$f":"IF(D30=\"\",\"\",IF(Beiträge!$C$5<21,\"\",IF(Beiträge!C5+Beiträge!C$6+5>=Beiträge!C7,\"\",IF(AND(Beiträge!C1=FALSE,Beiträge!C2=FALSE,Beiträge!C3=FALSE,Beiträge!C4=FALSE),\"\",IF(AND(Beiträge!C1=FALSE,Beiträge!C2=TRUE,Beiträge!C3=FALSE,Beiträge!C4=FALSE),\"\",IF(AND(Beiträge!C1=FALSE,Beiträge!C2=FALSE,Beiträge!C3=FALSE,Beiträge!C4=TRUE),\"\",IF(AND(Beiträge!C1=FALSE,Beiträge!C2=FALSE,Beiträge!C3=TRUE,Beiträge!C4=FALSE),\"\",IF(AND(Beiträge!C1=FALSE,Beiträge!C2=FALSE,Beiträge!C3=TRUE,Beiträge!C4=TRUE),\"\",IF(AND(Beiträge!C1=TRUE,Beiträge!C2=TRUE,Beiträge!C3=TRUE,Beiträge!C4=TRUE),\"\",IF(AND(Beiträge!C1=TRUE,Beiträge!C2=TRUE,Beiträge!C3=FALSE,Beiträge!C4=TRUE),\"\",IF(AND(Beiträge!C1=TRUE,Beiträge!C2=TRUE,Beiträge!C3=TRUE,Beiträge!C4=FALSE),\"\",IF(AND(Beiträge!C1=TRUE,Beiträge!C2=FALSE,Beiträge!C3=FALSE,Beiträge!C4=FALSE),\"\",IF(AND(Beiträge!C1=TRUE,Beiträge!C2=TRUE,Beiträge!C3=FALSE,Beiträge!C4=FALSE),\"\",IF(AND(Beiträge!C1=FALSE,Beiträge!C2=TRUE,Beiträge!C3=TRUE,Beiträge!C4=TRUE),\"\",IF(AND(Beiträge!C1=TRUE,Beiträge!C2=FALSE,Beiträge!C3=TRUE,Beiträge!C4=TRUE),\"\",IF(AND(Beiträge!C1=FALSE,Beiträge!C2=TRUE,Beiträge!C3=TRUE,Beiträge!C4=FALSE),0,IF(AND(Beiträge!C1=TRUE,Beiträge!C2=FALSE,Beiträge!C3=TRUE,Beiträge!C4=FALSE),0,(VLOOKUP(Beiträge!$C$5,Beiträge!F:J,5,0)))))))))))))))))))","v":""},{"$f":"IF(D30=\"\",\"\",IF(Beiträge!C$5<21,\"\",IF(Beiträge!C5+Beiträge!C$6+5>=Beiträge!C7,\"\",IF(AND(Beiträge!C1=FALSE,Beiträge!C2=FALSE,Beiträge!C3=FALSE,Beiträge!C4=FALSE),\"\",IF(AND(Beiträge!C1=TRUE,Beiträge!C2=FALSE,Beiträge!C3=FALSE,Beiträge!C4=FALSE),\"\",IF(AND(Beiträge!C1=FALSE,Beiträge!C2=FALSE),\"\",IF(AND(Beiträge!C1=FALSE,Beiträge!C2=FALSE,Beiträge!C3=FALSE,Beiträge!C4=TRUE),\"\",IF(AND(Beiträge!C1=TRUE,Beiträge!C2=TRUE),\"\",IF(AND(Beiträge!C1=FALSE,Beiträge!C2=TRUE,Beiträge!C3=TRUE,Beiträge!C4=TRUE),\"\",IF(AND(Beiträge!C1=TRUE,Beiträge!C2=FALSE,Beiträge!C3=TRUE,Beiträge!C4=TRUE),\"\",IF(AND(Beiträge!C3=FALSE,Beiträge!C4=FALSE),E30,F30+E30)))))))))))","v":""}]
[null,null,null,{"$f":"IF(AND(Beiträge!C1=FALSE,Beiträge!C2=FALSE,Beiträge!C3=FALSE,Beiträge!C4=FALSE),\"\",IF(Beiträge!C$5+Beiträge!C$6+10>=C$9,\"\",IF(D$28=\"\",\"\",\"Alter \"&Beiträge!C$5+Beiträge!C$6+10)))","v":""},{"$f":"IF(D31=\"\",\"\",IF(Beiträge!C5<21,\"\",IF(Beiträge!C5+Beiträge!C$6+10>=Beiträge!C7,\"\",IF(AND(Beiträge!C1=FALSE,Beiträge!C2=FALSE,Beiträge!C3=FALSE,Beiträge!C4=FALSE),\"\",IF(AND(Beiträge!C1=FALSE,Beiträge!C2=FALSE,Beiträge!C3=FALSE,Beiträge!C4=TRUE),\"\",IF(AND(Beiträge!C1=FALSE,Beiträge!C2=FALSE,Beiträge!C3=TRUE,Beiträge!C4=FALSE),\"\",IF(AND(Beiträge!C1=TRUE,Beiträge!C2=FALSE,Beiträge!C3=TRUE,Beiträge!C4=TRUE),\"\",IF(AND(Beiträge!C1=FALSE,Beiträge!C2=TRUE,Beiträge!C3=TRUE,Beiträge!C4=TRUE),\"\",IF(AND(Beiträge!C1=TRUE,Beiträge!C2=TRUE),\"\",IF(Beiträge!C1=TRUE,0,VLOOKUP(Beiträge!C$5+Beiträge!C$6+10,Beiträge!A:CF,3,0)))))))))))","v":""},{"$f":"IF(D31=\"\",\"\",IF(Beiträge!$C$5<21,\"\",IF(Beiträge!C5+Beiträge!C$6+10>=Beiträge!C7,\"\",IF(AND(Beiträge!C1=FALSE,Beiträge!C2=FALSE,Beiträge!C3=FALSE,Beiträge!C4=FALSE),\"\",IF(AND(Beiträge!C1=FALSE,Beiträge!C2=TRUE,Beiträge!C3=FALSE,Beiträge!C4=FALSE),\"\",IF(AND(Beiträge!C1=FALSE,Beiträge!C2=FALSE,Beiträge!C3=FALSE,Beiträge!C4=TRUE),\"\",IF(AND(Beiträge!C1=FALSE,Beiträge!C2=FALSE,Beiträge!C3=TRUE,Beiträge!C4=FALSE),\"\",IF(AND(Beiträge!C1=FALSE,Beiträge!C2=FALSE,Beiträge!C3=TRUE,Beiträge!C4=TRUE),\"\",IF(AND(Beiträge!C1=TRUE,Beiträge!C2=TRUE,Beiträge!C3=TRUE,Beiträge!C4=TRUE),\"\",IF(AND(Beiträge!C1=TRUE,Beiträge!C2=TRUE,Beiträge!C3=FALSE,Beiträge!C4=TRUE),\"\",IF(AND(Beiträge!C1=TRUE,Beiträge!C2=TRUE,Beiträge!C3=TRUE,Beiträge!C4=FALSE),\"\",IF(AND(Beiträge!C1=TRUE,Beiträge!C2=FALSE,Beiträge!C3=FALSE,Beiträge!C4=FALSE),\"\",IF(AND(Beiträge!C1=TRUE,Beiträge!C2=TRUE,Beiträge!C3=FALSE,Beiträge!C4=FALSE),\"\",IF(AND(Beiträge!C1=FALSE,Beiträge!C2=TRUE,Beiträge!C3=TRUE,Beiträge!C4=TRUE),\"\",IF(AND(Beiträge!C1=TRUE,Beiträge!C2=FALSE,Beiträge!C3=TRUE,Beiträge!C4=TRUE),\"\",IF(AND(Beiträge!C1=FALSE,Beiträge!C2=TRUE,Beiträge!C3=TRUE,Beiträge!C4=FALSE),0,IF(AND(Beiträge!C1=TRUE,Beiträge!C2=FALSE,Beiträge!C3=TRUE,Beiträge!C4=FALSE),0,(VLOOKUP(Beiträge!$C$5,Beiträge!F:J,5,0)))))))))))))))))))","v":""},{"$f":"IF(D31=\"\",\"\",IF(Beiträge!C$5<21,\"\",IF(Beiträge!C5+Beiträge!C$6+10>=Beiträge!C7,\"\",IF(AND(Beiträge!C1=FALSE,Beiträge!C2=FALSE,Beiträge!C3=FALSE,Beiträge!C4=FALSE),\"\",IF(AND(Beiträge!C1=TRUE,Beiträge!C2=FALSE,Beiträge!C3=FALSE,Beiträge!C4=FALSE),\"\",IF(AND(Beiträge!C1=FALSE,Beiträge!C2=FALSE),\"\",IF(AND(Beiträge!C1=FALSE,Beiträge!C2=FALSE,Beiträge!C3=FALSE,Beiträge!C4=TRUE),\"\",IF(AND(Beiträge!C1=TRUE,Beiträge!C2=TRUE),\"\",IF(AND(Beiträge!C1=FALSE,Beiträge!C2=TRUE,Beiträge!C3=TRUE,Beiträge!C4=TRUE),\"\",IF(AND(Beiträge!C1=TRUE,Beiträge!C2=FALSE,Beiträge!C3=TRUE,Beiträge!C4=TRUE),\"\",IF(AND(Beiträge!C3=FALSE,Beiträge!C4=FALSE),E31,F31+E31)))))))))))","v":""}]
[null,null,null,{"$f":"IF(AND(Beiträge!C1=FALSE,Beiträge!C2=FALSE,Beiträge!C3=FALSE,Beiträge!C4=FALSE),\"\",IF(Beiträge!C$5+Beiträge!C$6+15>=C$9,\"\",IF(D$28=\"\",\"\",\"Alter \"&Beiträge!C$5+Beiträge!C$6+15)))","v":""},{"$f":"IF(D32=\"\",\"\",IF(Beiträge!C5<21,\"\",IF(Beiträge!C5+Beiträge!C$6+15>=Beiträge!C7,\"\",IF(AND(Beiträge!C1=FALSE,Beiträge!C2=FALSE,Beiträge!C3=FALSE,Beiträge!C4=FALSE),\"\",IF(AND(Beiträge!C1=FALSE,Beiträge!C2=FALSE,Beiträge!C3=FALSE,Beiträge!C4=TRUE),\"\",IF(AND(Beiträge!C1=FALSE,Beiträge!C2=FALSE,Beiträge!C3=TRUE,Beiträge!C4=FALSE),\"\",IF(AND(Beiträge!C1=TRUE,Beiträge!C2=FALSE,Beiträge!C3=TRUE,Beiträge!C4=TRUE),\"\",IF(AND(Beiträge!C1=FALSE,Beiträge!C2=TRUE,Beiträge!C3=TRUE,Beiträge!C4=TRUE),\"\",IF(AND(Beiträge!C1=TRUE,Beiträge!C2=TRUE),\"\",IF(Beiträge!C1=TRUE,0,VLOOKUP(Beiträge!C$5+Beiträge!C$6+15,Beiträge!A:CF,3,0)))))))))))","v":""},{"$f":"IF(D32=\"\",\"\",IF(Beiträge!$C$5<21,\"\",IF(Beiträge!C5+Beiträge!C$6+15>=Beiträge!C7,\"\",IF(AND(Beiträge!C1=FALSE,Beiträge!C2=FALSE,Beiträge!C3=FALSE,Beiträge!C4=FALSE),\"\",IF(AND(Beiträge!C1=FALSE,Beiträge!C2=TRUE,Beiträge!C3=FALSE,Beiträge!C4=FALSE),\"\",IF(AND(Beiträge!C1=FALSE,Beiträge!C2=FALSE,Beiträge!C3=FALSE,Beiträge!C4=TRUE),\"\",IF(AND(Beiträge!C1=FALSE,Beiträge!C2=FALSE,Beiträge!C3=TRUE,Beiträge!C4=FALSE),\"\",IF(AND(Beiträge!C1=FALSE,Beiträge!C2=FALSE,Beiträge!C3=TRUE,Beiträge!C4=TRUE),\"\",IF(AND(Beiträge!C1=TRUE,Beiträge!C2=TRUE,Beiträge!C3=TRUE,Beiträge!C4=TRUE),\"\",IF(AND(Beiträge!C1=TRUE,Beiträge!C2=TRUE,Beiträge!C3=FALSE,Beiträge!C4=TRUE),\"\",IF(AND(Beiträge!C1=TRUE,Beiträge!C2=TRUE,Beiträge!C3=TRUE,Beiträge!C4=FALSE),\"\",IF(AND(Beiträge!C1=TRUE,Beiträge!C2=FALSE,Beiträge!C3=FALSE,Beiträge!C4=FALSE),\"\",IF(AND(Beiträge!C1=TRUE,Beiträge!C2=TRUE,Beiträge!C3=FALSE,Beiträge!C4=FALSE),\"\",IF(AND(Beiträge!C1=FALSE,Beiträge!C2=TRUE,Beiträge!C3=TRUE,Beiträge!C4=TRUE),\"\",IF(AND(Beiträge!C1=TRUE,Beiträge!C2=FALSE,Beiträge!C3=TRUE,Beiträge!C4=TRUE),\"\",IF(AND(Beiträge!C1=FALSE,Beiträge!C2=TRUE,Beiträge!C3=TRUE,Beiträge!C4=FALSE),0,IF(AND(Beiträge!C1=TRUE,Beiträge!C2=FALSE,Beiträge!C3=TRUE,Beiträge!C4=FALSE),0,(VLOOKUP(Beiträge!$C$5,Beiträge!F:J,5,0)))))))))))))))))))","v":""},{"$f":"IF(D32=\"\",\"\",IF(Beiträge!C$5<21,\"\",IF(Beiträge!C5+Beiträge!C$6+15>=Beiträge!C7,\"\",IF(AND(Beiträge!C1=FALSE,Beiträge!C2=FALSE,Beiträge!C3=FALSE,Beiträge!C4=FALSE),\"\",IF(AND(Beiträge!C1=TRUE,Beiträge!C2=FALSE,Beiträge!C3=FALSE,Beiträge!C4=FALSE),\"\",IF(AND(Beiträge!C1=FALSE,Beiträge!C2=FALSE),\"\",IF(AND(Beiträge!C1=FALSE,Beiträge!C2=FALSE,Beiträge!C3=FALSE,Beiträge!C4=TRUE),\"\",IF(AND(Beiträge!C1=TRUE,Beiträge!C2=TRUE),\"\",IF(AND(Beiträge!C1=FALSE,Beiträge!C2=TRUE,Beiträge!C3=TRUE,Beiträge!C4=TRUE),\"\",IF(AND(Beiträge!C1=TRUE,Beiträge!C2=FALSE,Beiträge!C3=TRUE,Beiträge!C4=TRUE),\"\",IF(AND(Beiträge!C3=FALSE,Beiträge!C4=FALSE),E32,F32+E32)))))))))))","v":""}]
[null,null,null,{"$f":"IF(AND(Beiträge!C1=FALSE,Beiträge!C2=FALSE,Beiträge!C3=FALSE,Beiträge!C4=FALSE),\"\",IF(Beiträge!C$5+Beiträge!C$6+20>=C$9,\"\",IF(D$28=\"\",\"\",\"Alter \"&Beiträge!C$5+Beiträge!C$6+20)))","v":""},{"$f":"IF(D33=\"\",\"\",IF(Beiträge!C5<21,\"\",IF(Beiträge!C5+Beiträge!C$6+20>=Beiträge!C7,\"\",IF(AND(Beiträge!C1=FALSE,Beiträge!C2=FALSE,Beiträge!C3=FALSE,Beiträge!C4=FALSE),\"\",IF(AND(Beiträge!C1=FALSE,Beiträge!C2=FALSE,Beiträge!C3=FALSE,Beiträge!C4=TRUE),\"\",IF(AND(Beiträge!C1=FALSE,Beiträge!C2=FALSE,Beiträge!C3=TRUE,Beiträge!C4=FALSE),\"\",IF(AND(Beiträge!C1=TRUE,Beiträge!C2=FALSE,Beiträge!C3=TRUE,Beiträge!C4=TRUE),\"\",IF(AND(Beiträge!C1=FALSE,Beiträge!C2=TRUE,Beiträge!C3=TRUE,Beiträge!C4=TRUE),\"\",IF(AND(Beiträge!C1=TRUE,Beiträge!C2=TRUE),\"\",IF(Beiträge!C1=TRUE,0,VLOOKUP(Beiträge!C$5+Beiträge!C$6+20,Beiträge!A:CF,3,0)))))))))))","v":""},{"$f":"IF(D33=\"\",\"\",IF(Beiträge!$C$5<21,\"\",IF(Beiträge!C5+Beiträge!C$6+20>=Beiträge!C7,\"\",IF(AND(Beiträge!C1=FALSE,Beiträge!C2=FALSE,Beiträge!C3=FALSE,Beiträge!C4=FALSE),\"\",IF(AND(Beiträge!C1=FALSE,Beiträge!C2=TRUE,Beiträge!C3=FALSE,Beiträge!C4=FALSE),\"\",IF(AND(Beiträge!C1=FALSE,Beiträge!C2=FALSE,Beiträge!C3=FALSE,Beiträge!C4=TRUE),\"\",IF(AND(Beiträge!C1=FALSE,Beiträge!C2=FALSE,Beiträge!C3=TRUE,Beiträge!C4=FALSE),\"\",IF(AND(Beiträge!C1=FALSE,Beiträge!C2=FALSE,Beiträge!C3=TRUE,Beiträge!C4=TRUE),\"\",IF(AND(Beiträge!C1=TRUE,Beiträge!C2=TRUE,Beiträge!C3=TRUE,Beiträge!C4=TRUE),\"\",IF(AND(Beiträge!C1=TRUE,Beiträge!C2=TRUE,Beiträge!C3=FALSE,Beiträge!C4=TRUE),\"\",IF(AND(Beiträge!C1=TRUE,Beiträge!C2=TRUE,Beiträge!C3=TRUE,Beiträge!C4=FALSE),\"\",IF(AND(Beiträge!C1=TRUE,Beiträge!C2=FALSE,Beiträge!C3=FALSE,Beiträge!C4=FALSE),\"\",IF(AND(Beiträge!C1=TRUE,Beiträge!C2=TRUE,Beiträge!C3=FALSE,Beiträge!C4=FALSE),\"\",IF(AND(Beiträge!C1=FALSE,Beiträge!C2=TRUE,Beiträge!C3=TRUE,Beiträge!C4=TRUE),\"\",IF(AND(Beiträge!C1=TRUE,Beiträge!C2=FALSE,Beiträge!C3=TRUE,Beiträge!C4=TRUE),\"\",IF(AND(Beiträge!C1=FALSE,Beiträge!C2=TRUE,Beiträge!C3=TRUE,Beiträge!C4=FALSE),0,IF(AND(Beiträge!C1=TRUE,Beiträge!C2=FALSE,Beiträge!C3=TRUE,Beiträge!C4=FALSE),0,(VLOOKUP(Beiträge!$C$5,Beiträge!F:J,5,0)))))))))))))))))))","v":""},{"$f":"IF(D33=\"\",\"\",IF(Beiträge!C$5<21,\"\",IF(Beiträge!C5+Beiträge!C$6+20>=Beiträge!C7,\"\",IF(AND(Beiträge!C1=FALSE,Beiträge!C2=FALSE,Beiträge!C3=FALSE,Beiträge!C4=FALSE),\"\",IF(AND(Beiträge!C1=TRUE,Beiträge!C2=FALSE,Beiträge!C3=FALSE,Beiträge!C4=FALSE),\"\",IF(AND(Beiträge!C1=FALSE,Beiträge!C2=FALSE),\"\",IF(AND(Beiträge!C1=FALSE,Beiträge!C2=FALSE,Beiträge!C3=FALSE,Beiträge!C4=TRUE),\"\",IF(AND(Beiträge!C1=TRUE,Beiträge!C2=TRUE),\"\",IF(AND(Beiträge!C1=FALSE,Beiträge!C2=TRUE,Beiträge!C3=TRUE,Beiträge!C4=TRUE),\"\",IF(AND(Beiträge!C1=TRUE,Beiträge!C2=FALSE,Beiträge!C3=TRUE,Beiträge!C4=TRUE),\"\",IF(AND(Beiträge!C3=FALSE,Beiträge!C4=FALSE),E33,F33+E33)))))))))))","v":""}]
[null,null,null,{"$f":"IF(AND(Beiträge!C1=FALSE,Beiträge!C2=FALSE,Beiträge!C3=FALSE,Beiträge!C4=FALSE),\"\",IF(Beiträge!C$5+Beiträge!C$6+25>=C$9,\"\",IF(D$28=\"\",\"\",\"Alter \"&Beiträge!C$5+Beiträge!C$6+25)))","v":""},{"$f":"IF(D34=\"\",\"\",IF(Beiträge!C5<21,\"\",IF(Beiträge!C5+Beiträge!C$6+25>=Beiträge!C7,\"\",IF(AND(Beiträge!C1=FALSE,Beiträge!C2=FALSE,Beiträge!C3=FALSE,Beiträge!C4=FALSE),\"\",IF(AND(Beiträge!C1=FALSE,Beiträge!C2=FALSE,Beiträge!C3=FALSE,Beiträge!C4=TRUE),\"\",IF(AND(Beiträge!C1=FALSE,Beiträge!C2=FALSE,Beiträge!C3=TRUE,Beiträge!C4=FALSE),\"\",IF(AND(Beiträge!C1=TRUE,Beiträge!C2=FALSE,Beiträge!C3=TRUE,Beiträge!C4=TRUE),\"\",IF(AND(Beiträge!C1=FALSE,Beiträge!C2=TRUE,Beiträge!C3=TRUE,Beiträge!C4=TRUE),\"\",IF(AND(Beiträge!C1=TRUE,Beiträge!C2=TRUE),\"\",IF(Beiträge!C1=TRUE,0,VLOOKUP(Beiträge!C$5+Beiträge!C$6+25,Beiträge!A:CF,3,0)))))))))))","v":""},{"$f":"IF(D34=\"\",\"\",IF(Beiträge!$C$5<21,\"\",IF(Beiträge!C5+Beiträge!C$6+25>=Beiträge!C7,\"\",IF(AND(Beiträge!C1=FALSE,Beiträge!C2=FALSE,Beiträge!C3=FALSE,Beiträge!C4=FALSE),\"\",IF(AND(Beiträge!C1=FALSE,Beiträge!C2=TRUE,Beiträge!C3=FALSE,Beiträge!C4=FALSE),\"\",IF(AND(Beiträge!C1=FALSE,Beiträge!C2=FALSE,Beiträge!C3=FALSE,Beiträge!C4=TRUE),\"\",IF(AND(Beiträge!C1=FALSE,Beiträge!C2=FALSE,Beiträge!C3=TRUE,Beiträge!C4=FALSE),\"\",IF(AND(Beiträge!C1=FALSE,Beiträge!C2=FALSE,Beiträge!C3=TRUE,Beiträge!C4=TRUE),\"\",IF(AND(Beiträge!C1=TRUE,Beiträge!C2=TRUE,Beiträge!C3=TRUE,Beiträge!C4=TRUE),\"\",IF(AND(Beiträge!C1=TRUE,Beiträge!C2=TRUE,Beiträge!C3=FALSE,Beiträge!C4=TRUE),\"\",IF(AND(Beiträge!C1=TRUE,Beiträge!C2=TRUE,Beiträge!C3=TRUE,Beiträge!C4=FALSE),\"\",IF(AND(Beiträge!C1=TRUE,Beiträge!C2=FALSE,Beiträge!C3=FALSE,Beiträge!C4=FALSE),\"\",IF(AND(Beiträge!C1=TRUE,Beiträge!C2=TRUE,Beiträge!C3=FALSE,Beiträge!C4=FALSE),\"\",IF(AND(Beiträge!C1=FALSE,Beiträge!C2=TRUE,Beiträge!C3=TRUE,Beiträge!C4=TRUE),\"\",IF(AND(Beiträge!C1=TRUE,Beiträge!C2=FALSE,Beiträge!C3=TRUE,Beiträge!C4=TRUE),\"\",IF(AND(Beiträge!C1=FALSE,Beiträge!C2=TRUE,Beiträge!C3=TRUE,Beiträge!C4=FALSE),0,IF(AND(Beiträge!C1=TRUE,Beiträge!C2=FALSE,Beiträge!C3=TRUE,Beiträge!C4=FALSE),0,(VLOOKUP(Beiträge!$C$5,Beiträge!F:J,5,0)))))))))))))))))))","v":""},{"$f":"IF(D34=\"\",\"\",IF(Beiträge!C$5<21,\"\",IF(Beiträge!C5+Beiträge!C$6+25>=Beiträge!C7,\"\",IF(AND(Beiträge!C1=FALSE,Beiträge!C2=FALSE,Beiträge!C3=FALSE,Beiträge!C4=FALSE),\"\",IF(AND(Beiträge!C1=TRUE,Beiträge!C2=FALSE,Beiträge!C3=FALSE,Beiträge!C4=FALSE),\"\",IF(AND(Beiträge!C1=FALSE,Beiträge!C2=FALSE),\"\",IF(AND(Beiträge!C1=FALSE,Beiträge!C2=FALSE,Beiträge!C3=FALSE,Beiträge!C4=TRUE),\"\",IF(AND(Beiträge!C1=TRUE,Beiträge!C2=TRUE),\"\",IF(AND(Beiträge!C1=FALSE,Beiträge!C2=TRUE,Beiträge!C3=TRUE,Beiträge!C4=TRUE),\"\",IF(AND(Beiträge!C1=TRUE,Beiträge!C2=FALSE,Beiträge!C3=TRUE,Beiträge!C4=TRUE),\"\",IF(AND(Beiträge!C3=FALSE,Beiträge!C4=FALSE),E34,F34+E34)))))))))))","v":""}]
[null,null,null,{"$f":"IF(AND(Beiträge!C1=FALSE,Beiträge!C2=FALSE,Beiträge!C3=FALSE,Beiträge!C4=FALSE),\"\",IF(Beiträge!C$5+Beiträge!C$6+30>=C$9,\"\",IF(D$28=\"\",\"\",\"Alter \"&Beiträge!C$5+Beiträge!C$6+30)))","v":""},{"$f":"IF(D35=\"\",\"\",IF(Beiträge!C5<21,\"\",IF(Beiträge!C5+Beiträge!C$6+30>=Beiträge!C7,\"\",IF(AND(Beiträge!C1=FALSE,Beiträge!C2=FALSE,Beiträge!C3=FALSE,Beiträge!C4=FALSE),\"\",IF(AND(Beiträge!C1=FALSE,Beiträge!C2=FALSE,Beiträge!C3=FALSE,Beiträge!C4=TRUE),\"\",IF(AND(Beiträge!C1=FALSE,Beiträge!C2=FALSE,Beiträge!C3=TRUE,Beiträge!C4=FALSE),\"\",IF(AND(Beiträge!C1=TRUE,Beiträge!C2=FALSE,Beiträge!C3=TRUE,Beiträge!C4=TRUE),\"\",IF(AND(Beiträge!C1=FALSE,Beiträge!C2=TRUE,Beiträge!C3=TRUE,Beiträge!C4=TRUE),\"\",IF(AND(Beiträge!C1=TRUE,Beiträge!C2=TRUE),\"\",IF(Beiträge!C1=TRUE,0,VLOOKUP(Beiträge!C$5+Beiträge!C$6+30,Beiträge!A:CF,3,0)))))))))))","v":""},{"$f":"IF(D35=\"\",\"\",IF(Beiträge!$C$5<21,\"\",IF(Beiträge!C5+Beiträge!C$6+30>=Beiträge!C7,\"\",IF(AND(Beiträge!C1=FALSE,Beiträge!C2=FALSE,Beiträge!C3=FALSE,Beiträge!C4=FALSE),\"\",IF(AND(Beiträge!C1=FALSE,Beiträge!C2=TRUE,Beiträge!C3=FALSE,Beiträge!C4=FALSE),\"\",IF(AND(Beiträge!C1=FALSE,Beiträge!C2=FALSE,Beiträge!C3=FALSE,Beiträge!C4=TRUE),\"\",IF(AND(Beiträge!C1=FALSE,Beiträge!C2=FALSE,Beiträge!C3=TRUE,Beiträge!C4=FALSE),\"\",IF(AND(Beiträge!C1=FALSE,Beiträge!C2=FALSE,Beiträge!C3=TRUE,Beiträge!C4=TRUE),\"\",IF(AND(Beiträge!C1=TRUE,Beiträge!C2=TRUE,Beiträge!C3=TRUE,Beiträge!C4=TRUE),\"\",IF(AND(Beiträge!C1=TRUE,Beiträge!C2=TRUE,Beiträge!C3=FALSE,Beiträge!C4=TRUE),\"\",IF(AND(Beiträge!C1=TRUE,Beiträge!C2=TRUE,Beiträge!C3=TRUE,Beiträge!C4=FALSE),\"\",IF(AND(Beiträge!C1=TRUE,Beiträge!C2=FALSE,Beiträge!C3=FALSE,Beiträge!C4=FALSE),\"\",IF(AND(Beiträge!C1=TRUE,Beiträge!C2=TRUE,Beiträge!C3=FALSE,Beiträge!C4=FALSE),\"\",IF(AND(Beiträge!C1=FALSE,Beiträge!C2=TRUE,Beiträge!C3=TRUE,Beiträge!C4=TRUE),\"\",IF(AND(Beiträge!C1=TRUE,Beiträge!C2=FALSE,Beiträge!C3=TRUE,Beiträge!C4=TRUE),\"\",IF(AND(Beiträge!C1=FALSE,Beiträge!C2=TRUE,Beiträge!C3=TRUE,Beiträge!C4=FALSE),0,IF(AND(Beiträge!C1=TRUE,Beiträge!C2=FALSE,Beiträge!C3=TRUE,Beiträge!C4=FALSE),0,(VLOOKUP(Beiträge!$C$5,Beiträge!F:J,5,0)))))))))))))))))))","v":""},{"$f":"IF(D35=\"\",\"\",IF(Beiträge!C$5<21,\"\",IF(Beiträge!C5+30>=Beiträge!C7,\"\",IF(AND(Beiträge!C1=FALSE,Beiträge!C2=FALSE,Beiträge!C3=FALSE,Beiträge!C4=FALSE),\"\",IF(AND(Beiträge!C1=TRUE,Beiträge!C2=FALSE,Beiträge!C3=FALSE,Beiträge!C4=FALSE),\"\",IF(AND(Beiträge!C1=FALSE,Beiträge!C2=FALSE),\"\",IF(AND(Beiträge!C1=FALSE,Beiträge!C2=FALSE,Beiträge!C3=FALSE,Beiträge!C4=TRUE),\"\",IF(AND(Beiträge!C1=TRUE,Beiträge!C2=TRUE),\"\",IF(AND(Beiträge!C1=FALSE,Beiträge!C2=TRUE,Beiträge!C3=TRUE,Beiträge!C4=TRUE),\"\",IF(AND(Beiträge!C1=TRUE,Beiträge!C2=FALSE,Beiträge!C3=TRUE,Beiträge!C4=TRUE),\"\",IF(AND(Beiträge!C3=FALSE,Beiträge!C4=FALSE),E35,F35+E35)))))))))))","v":""}]
[null,null,null,{"$f":"IF(AND(Beiträge!C1=FALSE,Beiträge!C2=FALSE,Beiträge!C3=FALSE,Beiträge!C4=FALSE),\"\",IF(Beiträge!C$5+Beiträge!C$6+35>=C$9,\"\",IF(D$28=\"\",\"\",\"Alter \"&Beiträge!C$5+Beiträge!C$6+35)))","v":""},{"$f":"IF(D36=\"\",\"\",IF(Beiträge!C5<21,\"\",IF(Beiträge!C5+Beiträge!C$6+35>=Beiträge!C7,\"\",IF(AND(Beiträge!C1=FALSE,Beiträge!C2=FALSE,Beiträge!C3=FALSE,Beiträge!C4=FALSE),\"\",IF(AND(Beiträge!C1=FALSE,Beiträge!C2=FALSE,Beiträge!C3=FALSE,Beiträge!C4=TRUE),\"\",IF(AND(Beiträge!C1=FALSE,Beiträge!C2=FALSE,Beiträge!C3=TRUE,Beiträge!C4=FALSE),\"\",IF(AND(Beiträge!C1=TRUE,Beiträge!C2=FALSE,Beiträge!C3=TRUE,Beiträge!C4=TRUE),\"\",IF(AND(Beiträge!C1=FALSE,Beiträge!C2=TRUE,Beiträge!C3=TRUE,Beiträge!C4=TRUE),\"\",IF(AND(Beiträge!C1=TRUE,Beiträge!C2=TRUE),\"\",IF(Beiträge!C1=TRUE,0,VLOOKUP(Beiträge!C$5+Beiträge!C$6+35,Beiträge!A:CF,3,0)))))))))))","v":""},{"$f":"IF(D36=\"\",\"\",IF(Beiträge!$C$5<21,\"\",IF(Beiträge!C5+Beiträge!C$6+35>=Beiträge!C7,\"\",IF(AND(Beiträge!C1=FALSE,Beiträge!C2=FALSE,Beiträge!C3=FALSE,Beiträge!C4=FALSE),\"\",IF(AND(Beiträge!C1=FALSE,Beiträge!C2=TRUE,Beiträge!C3=FALSE,Beiträge!C4=FALSE),\"\",IF(AND(Beiträge!C1=FALSE,Beiträge!C2=FALSE,Beiträge!C3=FALSE,Beiträge!C4=TRUE),\"\",IF(AND(Beiträge!C1=FALSE,Beiträge!C2=FALSE,Beiträge!C3=TRUE,Beiträge!C4=FALSE),\"\",IF(AND(Beiträge!C1=FALSE,Beiträge!C2=FALSE,Beiträge!C3=TRUE,Beiträge!C4=TRUE),\"\",IF(AND(Beiträge!C1=TRUE,Beiträge!C2=TRUE,Beiträge!C3=TRUE,Beiträge!C4=TRUE),\"\",IF(AND(Beiträge!C1=TRUE,Beiträge!C2=TRUE,Beiträge!C3=FALSE,Beiträge!C4=TRUE),\"\",IF(AND(Beiträge!C1=TRUE,Beiträge!C2=TRUE,Beiträge!C3=TRUE,Beiträge!C4=FALSE),\"\",IF(AND(Beiträge!C1=TRUE,Beiträge!C2=FALSE,Beiträge!C3=FALSE,Beiträge!C4=FALSE),\"\",IF(AND(Beiträge!C1=TRUE,Beiträge!C2=TRUE,Beiträge!C3=FALSE,Beiträge!C4=FALSE),\"\",IF(AND(Beiträge!C1=FALSE,Beiträge!C2=TRUE,Beiträge!C3=TRUE,Beiträge!C4=TRUE),\"\",IF(AND(Beiträge!C1=TRUE,Beiträge!C2=FALSE,Beiträge!C3=TRUE,Beiträge!C4=TRUE),\"\",IF(AND(Beiträge!C1=FALSE,Beiträge!C2=TRUE,Beiträge!C3=TRUE,Beiträge!C4=FALSE),0,IF(AND(Beiträge!C1=TRUE,Beiträge!C2=FALSE,Beiträge!C3=TRUE,Beiträge!C4=FALSE),0,(VLOOKUP(Beiträge!$C$5,Beiträge!F:J,5,0)))))))))))))))))))","v":""},{"$f":"IF(D36=\"\",\"\",IF(Beiträge!C$5<21,\"\",IF(Beiträge!C5+Beiträge!C$6+35>=Beiträge!C7,\"\",IF(AND(Beiträge!C1=FALSE,Beiträge!C2=FALSE,Beiträge!C3=FALSE,Beiträge!C4=FALSE),\"\",IF(AND(Beiträge!C1=TRUE,Beiträge!C2=FALSE,Beiträge!C3=FALSE,Beiträge!C4=FALSE),\"\",IF(AND(Beiträge!C1=FALSE,Beiträge!C2=FALSE),\"\",IF(AND(Beiträge!C1=FALSE,Beiträge!C2=FALSE,Beiträge!C3=FALSE,Beiträge!C4=TRUE),\"\",IF(AND(Beiträge!C1=TRUE,Beiträge!C2=TRUE),\"\",IF(AND(Beiträge!C1=FALSE,Beiträge!C2=TRUE,Beiträge!C3=TRUE,Beiträge!C4=TRUE),\"\",IF(AND(Beiträge!C1=TRUE,Beiträge!C2=FALSE,Beiträge!C3=TRUE,Beiträge!C4=TRUE),\"\",IF(AND(Beiträge!C3=FALSE,Beiträge!C4=FALSE),E36,F36+E36)))))))))))","v":""}]
[null,null,null,{"$f":"IF(AND(Beiträge!C1=FALSE,Beiträge!C2=FALSE,Beiträge!C3=FALSE,Beiträge!C4=FALSE),\"\",IF(Beiträge!C$5+Beiträge!C$6+40>=C$9,\"\",IF(D$28=\"\",\"\",\"Alter \"&Beiträge!C$5+Beiträge!C$6+40)))","v":""},{"$f":"IF(D37=\"\",\"\",IF(Beiträge!C5<21,\"\",IF(Beiträge!C5+Beiträge!C$6+40>=Beiträge!C7,\"\",IF(AND(Beiträge!C1=FALSE,Beiträge!C2=FALSE,Beiträge!C3=FALSE,Beiträge!C4=FALSE),\"\",IF(AND(Beiträge!C1=FALSE,Beiträge!C2=FALSE,Beiträge!C3=FALSE,Beiträge!C4=TRUE),\"\",IF(AND(Beiträge!C1=FALSE,Beiträge!C2=FALSE,Beiträge!C3=TRUE,Beiträge!C4=FALSE),\"\",IF(AND(Beiträge!C1=TRUE,Beiträge!C2=FALSE,Beiträge!C3=TRUE,Beiträge!C4=TRUE),\"\",IF(AND(Beiträge!C1=FALSE,Beiträge!C2=TRUE,Beiträge!C3=TRUE,Beiträge!C4=TRUE),\"\",IF(AND(Beiträge!C1=TRUE,Beiträge!C2=TRUE),\"\",IF(Beiträge!C1=TRUE,0,VLOOKUP(Beiträge!C$5+Beiträge!C$6+40,Beiträge!A:CF,3,0)))))))))))","v":""},{"$f":"IF(D37=\"\",\"\",IF(Beiträge!$C$5<21,\"\",IF(Beiträge!C5+Beiträge!C$6+40>=Beiträge!C7,\"\",IF(AND(Beiträge!C1=FALSE,Beiträge!C2=FALSE,Beiträge!C3=FALSE,Beiträge!C4=FALSE),\"\",IF(AND(Beiträge!C1=FALSE,Beiträge!C2=TRUE,Beiträge!C3=FALSE,Beiträge!C4=FALSE),\"\",IF(AND(Beiträge!C1=FALSE,Beiträge!C2=FALSE,Beiträge!C3=FALSE,Beiträge!C4=TRUE),\"\",IF(AND(Beiträge!C1=FALSE,Beiträge!C2=FALSE,Beiträge!C3=TRUE,Beiträge!C4=FALSE),\"\",IF(AND(Beiträge!C1=FALSE,Beiträge!C2=FALSE,Beiträge!C3=TRUE,Beiträge!C4=TRUE),\"\",IF(AND(Beiträge!C1=TRUE,Beiträge!C2=TRUE,Beiträge!C3=TRUE,Beiträge!C4=TRUE),\"\",IF(AND(Beiträge!C1=TRUE,Beiträge!C2=TRUE,Beiträge!C3=FALSE,Beiträge!C4=TRUE),\"\",IF(AND(Beiträge!C1=TRUE,Beiträge!C2=TRUE,Beiträge!C3=TRUE,Beiträge!C4=FALSE),\"\",IF(AND(Beiträge!C1=TRUE,Beiträge!C2=FALSE,Beiträge!C3=FALSE,Beiträge!C4=FALSE),\"\",IF(AND(Beiträge!C1=TRUE,Beiträge!C2=TRUE,Beiträge!C3=FALSE,Beiträge!C4=FALSE),\"\",IF(AND(Beiträge!C1=FALSE,Beiträge!C2=TRUE,Beiträge!C3=TRUE,Beiträge!C4=TRUE),\"\",IF(AND(Beiträge!C1=TRUE,Beiträge!C2=FALSE,Beiträge!C3=TRUE,Beiträge!C4=TRUE),\"\",IF(AND(Beiträge!C1=FALSE,Beiträge!C2=TRUE,Beiträge!C3=TRUE,Beiträge!C4=FALSE),0,IF(AND(Beiträge!C1=TRUE,Beiträge!C2=FALSE,Beiträge!C3=TRUE,Beiträge!C4=FALSE),0,(VLOOKUP(Beiträge!$C$5,Beiträge!F:J,5,0)))))))))))))))))))","v":""},{"$f":"IF(D37=\"\",\"\",IF(Beiträge!C$5<21,\"\",IF(Beiträge!C5+Beiträge!C$6+40>=Beiträge!C7,\"\",IF(AND(Beiträge!C1=FALSE,Beiträge!C2=FALSE,Beiträge!C3=FALSE,Beiträge!C4=FALSE),\"\",IF(AND(Beiträge!C1=TRUE,Beiträge!C2=FALSE,Beiträge!C3=FALSE,Beiträge!C4=FALSE),\"\",IF(AND(Beiträge!C1=FALSE,Beiträge!C2=FALSE),\"\",IF(AND(Beiträge!C1=FALSE,Beiträge!C2=FALSE,Beiträge!C3=FALSE,Beiträge!C4=TRUE),\"\",IF(AND(Beiträge!C1=TRUE,Beiträge!C2=TRUE),\"\",IF(AND(Beiträge!C1=FALSE,Beiträge!C2=TRUE,Beiträge!C3=TRUE,Beiträge!C4=TRUE),\"\",IF(AND(Beiträge!C1=TRUE,Beiträge!C2=FALSE,Beiträge!C3=TRUE,Beiträge!C4=TRUE),\"\",IF(AND(Beiträge!C3=FALSE,Beiträge!C4=FALSE),E37,F37+E37)))))))))))","v":""}]
[null,null,null,{"$f":"IF(AND(Beiträge!C1=FALSE,Beiträge!C2=FALSE,Beiträge!C3=FALSE,Beiträge!C4=FALSE),\"\",IF(Beiträge!C$5+Beiträge!C$6+45>=C$9,\"\",IF(D$28=\"\",\"\",\"Alter \"&Beiträge!C$5+Beiträge!C$6+45)))","v":""},{"$f":"IF(D38=\"\",\"\",IF(Beiträge!C5<21,\"\",IF(Beiträge!C5+Beiträge!C$6+45>=Beiträge!C7,\"\",IF(AND(Beiträge!C1=FALSE,Beiträge!C2=FALSE,Beiträge!C3=FALSE,Beiträge!C4=FALSE),\"\",IF(AND(Beiträge!C1=FALSE,Beiträge!C2=FALSE,Beiträge!C3=FALSE,Beiträge!C4=TRUE),\"\",IF(AND(Beiträge!C1=FALSE,Beiträge!C2=FALSE,Beiträge!C3=TRUE,Beiträge!C4=FALSE),\"\",IF(AND(Beiträge!C1=TRUE,Beiträge!C2=FALSE,Beiträge!C3=TRUE,Beiträge!C4=TRUE),\"\",IF(AND(Beiträge!C1=FALSE,Beiträge!C2=TRUE,Beiträge!C3=TRUE,Beiträge!C4=TRUE),\"\",IF(AND(Beiträge!C1=TRUE,Beiträge!C2=TRUE),\"\",IF(Beiträge!C1=TRUE,0,VLOOKUP(Beiträge!C$5+Beiträge!C$6+45,Beiträge!A:CF,3,0)))))))))))","v":""},{"$f":"IF(D38=\"\",\"\",IF(Beiträge!$C$5<21,\"\",IF(Beiträge!C5+Beiträge!C$6+45>=Beiträge!C7,\"\",IF(AND(Beiträge!C1=FALSE,Beiträge!C2=FALSE,Beiträge!C3=FALSE,Beiträge!C4=FALSE),\"\",IF(AND(Beiträge!C1=FALSE,Beiträge!C2=TRUE,Beiträge!C3=FALSE,Beiträge!C4=FALSE),\"\",IF(AND(Beiträge!C1=FALSE,Beiträge!C2=FALSE,Beiträge!C3=FALSE,Beiträge!C4=TRUE),\"\",IF(AND(Beiträge!C1=FALSE,Beiträge!C2=FALSE,Beiträge!C3=TRUE,Beiträge!C4=FALSE),\"\",IF(AND(Beiträge!C1=FALSE,Beiträge!C2=FALSE,Beiträge!C3=TRUE,Beiträge!C4=TRUE),\"\",IF(AND(Beiträge!C1=TRUE,Beiträge!C2=TRUE,Beiträge!C3=TRUE,Beiträge!C4=TRUE),\"\",IF(AND(Beiträge!C1=TRUE,Beiträge!C2=TRUE,Beiträge!C3=FALSE,Beiträge!C4=TRUE),\"\",IF(AND(Beiträge!C1=TRUE,Beiträge!C2=TRUE,Beiträge!C3=TRUE,Beiträge!C4=FALSE),\"\",IF(AND(Beiträge!C1=TRUE,Beiträge!C2=FALSE,Beiträge!C3=FALSE,Beiträge!C4=FALSE),\"\",IF(AND(Beiträge!C1=TRUE,Beiträge!C2=TRUE,Beiträge!C3=FALSE,Beiträge!C4=FALSE),\"\",IF(AND(Beiträge!C1=FALSE,Beiträge!C2=TRUE,Beiträge!C3=TRUE,Beiträge!C4=TRUE),\"\",IF(AND(Beiträge!C1=TRUE,Beiträge!C2=FALSE,Beiträge!C3=TRUE,Beiträge!C4=TRUE),\"\",IF(AND(Beiträge!C1=FALSE,Beiträge!C2=TRUE,Beiträge!C3=TRUE,Beiträge!C4=FALSE),0,IF(AND(Beiträge!C1=TRUE,Beiträge!C2=FALSE,Beiträge!C3=TRUE,Beiträge!C4=FALSE),0,(VLOOKUP(Beiträge!$C$5,Beiträge!F:J,5,0)))))))))))))))))))","v":""},{"$f":"IF(D38=\"\",\"\",IF(Beiträge!C$5<21,\"\",IF(Beiträge!C5+Beiträge!C$6+45>=Beiträge!C7,\"\",IF(AND(Beiträge!C1=FALSE,Beiträge!C2=FALSE,Beiträge!C3=FALSE,Beiträge!C4=FALSE),\"\",IF(AND(Beiträge!C1=TRUE,Beiträge!C2=FALSE,Beiträge!C3=FALSE,Beiträge!C4=FALSE),\"\",IF(AND(Beiträge!C1=FALSE,Beiträge!C2=FALSE),\"\",IF(AND(Beiträge!C1=FALSE,Beiträge!C2=FALSE,Beiträge!C3=FALSE,Beiträge!C4=TRUE),\"\",IF(AND(Beiträge!C1=TRUE,Beiträge!C2=TRUE),\"\",IF(AND(Beiträge!C1=FALSE,Beiträge!C2=TRUE,Beiträge!C3=TRUE,Beiträge!C4=TRUE),\"\",IF(AND(Beiträge!C1=TRUE,Beiträge!C2=FALSE,Beiträge!C3=TRUE,Beiträge!C4=TRUE),\"\",IF(AND(Beiträge!C3=FALSE,Beiträge!C4=FALSE),E38,F38+E38)))))))))))","v":""}]
[]
[null,null,null,"im Rentenalter"]
[null,null,null,{"$f":"IF(AND(Beiträge!C1=FALSE,Beiträge!C2=FALSE,Beiträge!C3=FALSE,Beiträge!C4=FALSE),\"\",IF(D$28=\"\",\"\",\"Ihr Monatsbeitrag *** ab dem\"))","v":""},{"$f":"IF(AND(Beiträge!C1=FALSE,Beiträge!C2=FALSE),\"\",IF(D$28=\"\",\"\",\"ohne Stabilität \nder Beiträge im Rentenalter \n(ZbKV-K II)\"))","v":""},{"$f":"IF(AND(Beiträge!C3=FALSE,Beiträge!C4=FALSE),\"\",IF(D$28=\"\",\"\",IF(OR(Beiträge!C3=TRUE,Beiträge!C4=TRUE),\"mit Stabilität \nder Beiträge im Rentenalter (ZbKVA-K II)\")))","v":""}]
[null,null,null,{"$f":"IF(AND(Beiträge!C1=FALSE,Beiträge!C2=FALSE,Beiträge!C3=FALSE,Beiträge!C4=FALSE),\"\",IF(OR(C7=\"\",C9=\"\"),\"\",IF(D$28=\"\",\"\",$C$9&\". Lebensjahr\")))","v":""},{"$f":"IF(AND(Beiträge!C1=FALSE,Beiträge!C2=FALSE,Beiträge!C3=FALSE,Beiträge!C4=FALSE),\"\",IF(AND(Beiträge!C1=FALSE,Beiträge!C2=FALSE),\"\",IF(D$28=\"\",\"\",IF(AND(Beiträge!C1=TRUE,Beiträge!C2=TRUE),\"\",IF($C$7<21,\"\",IF($C$9=\"\",\"\",IF(AND(Beiträge!C1=TRUE,Beiträge!C2=FALSE),VLOOKUP(C9,Beiträge!A15:C106,3,0),IF(AND(Beiträge!C1=FALSE,Beiträge!C2=TRUE),VLOOKUP(C9-Beiträge!C9,Beiträge!A15:C106,3,0),0))))))))","v":""},{"$f":"IF(AND(Beiträge!C1=FALSE,Beiträge!C2=FALSE,Beiträge!C3=FALSE,Beiträge!C4=FALSE),\"\",IF(AND(Beiträge!C1=FALSE,Beiträge!C2=FALSE),\"\",IF(AND(Beiträge!C3=FALSE,Beiträge!C4=FALSE),\"\",IF(D$28=\"\",\"\",IF(AND(Beiträge!C1=TRUE,Beiträge!C2=TRUE),\"\",IF($C$7<21,\"\",IF($C$9=\"\",\"\",IF(OR(Beiträge!C1=TRUE,Beiträge!C2=TRUE),VLOOKUP(Beiträge!C5,Beiträge!F14:L85,3,0)))))))))","v":""}]
[null,null,null,{"$f":"IF(AND(Beiträge!C1=FALSE,Beiträge!C2=FALSE,Beiträge!C3=FALSE,Beiträge!C4=FALSE),\"\",IF(OR(C7=\"\",C9=\"\"),\"\",IF(D$28=\"\",\"\",IF(AND(Beiträge!C1=FALSE,Beiträge!C2=TRUE,Beiträge!C8>Beiträge!C7),Beiträge!C8&\". Lebensjahr\",IF(AND(Beiträge!C1=TRUE,Beiträge!C2=FALSE),Beiträge!C8&\". Lebensjahr\")))))","v":""},{"$f":"IF(AND(Beiträge!C1=FALSE,Beiträge!C2=FALSE,Beiträge!C3=FALSE,Beiträge!C4=FALSE),\"\",IF(AND(Beiträge!C1=FALSE,Beiträge!C2=FALSE),\"\",IF(D$28=\"\",\"\",IF(AND(Beiträge!C1=TRUE,Beiträge!C2=TRUE),\"\",IF($C$7<21,\"\",IF($C$9=\"\",\"\",IF(AND(Beiträge!C1=TRUE,Beiträge!C2=FALSE),VLOOKUP(Beiträge!C8,Beiträge!A15:C106,3,0),IF(AND(Beiträge!C1=FALSE,Beiträge!C2=TRUE),VLOOKUP(Beiträge!C8,Beiträge!A15:C106,3,0)))))))))","v":""},{"$f":"IF(AND(Beiträge!C1=FALSE,Beiträge!C2=FALSE,Beiträge!C3=FALSE,Beiträge!C4=FALSE),\"\",IF(AND(Beiträge!C1=FALSE,Beiträge!C2=FALSE),\"\",IF(AND(Beiträge!C3=FALSE,Beiträge!C4=FALSE),\"\",IF(D$28=\"\",\"\",IF(AND(Beiträge!C1=TRUE,Beiträge!C2=TRUE),\"\",IF($C$7<21,\"\",IF($C$9=\"\",\"\",IF(OR(Beiträge!C1=TRUE,Beiträge!C2=TRUE),VLOOKUP(Beiträge!C5,Beiträge!F14:L85,3,0)))))))))","v":""}]
[null,null,null,{"$f":"IF(AND(Beiträge!C1=FALSE,Beiträge!C2=FALSE,Beiträge!C3=FALSE,Beiträge!C4=FALSE),\"\",IF(OR(C7=\"\",C9=\"\"),\"\",IF(D$28=\"\",\"\",IF(AND(Beiträge!C1=FALSE,Beiträge!C2=TRUE),Beiträge!C8+5&\". Lebensjahr\",IF(AND(Beiträge!C1=TRUE,Beiträge!C2=FALSE),Beiträge!C8+5&\". Lebensjahr\")))))","v":""},{"$f":"IF(AND(Beiträge!C1=FALSE,Beiträge!C2=FALSE,Beiträge!C3=FALSE,Beiträge!C4=FALSE),\"\",IF(AND(Beiträge!C1=FALSE,Beiträge!C2=FALSE),\"\",IF(D$28=\"\",\"\",IF(AND(Beiträge!C1=TRUE,Beiträge!C2=TRUE),\"\",IF($C$7<21,\"\",IF($C$9=\"\",\"\",IF(AND(Beiträge!C1=TRUE,Beiträge!C2=FALSE),VLOOKUP(Beiträge!C8+5,Beiträge!A15:C106,3,0),IF(AND(Beiträge!C1=FALSE,Beiträge!C2=TRUE),VLOOKUP(Beiträge!C8+5,Beiträge!A15:C106,3,0)))))))))","v":""},{"$f":"IF(AND(Beiträge!C1=FALSE,Beiträge!C2=FALSE,Beiträge!C3=FALSE,Beiträge!C4=FALSE),\"\",IF(AND(Beiträge!C1=FALSE,Beiträge!C2=FALSE),\"\",IF(AND(Beiträge!C3=FALSE,Beiträge!C4=FALSE),\"\",IF(D$28=\"\",\"\",IF(AND(Beiträge!C1=TRUE,Beiträge!C2=TRUE),\"\",IF($C$7<21,\"\",IF($C$9=\"\",\"\",IF(OR(Beiträge!C1=TRUE,Beiträge!C2=TRUE),VLOOKUP(Beiträge!C5,Beiträge!F14:L85,3,0)))))))))","v":""}]
[null,null,null,{"$f":"IF(AND(Beiträge!C1=FALSE,Beiträge!C2=FALSE,Beiträge!C3=FALSE,Beiträge!C4=FALSE),\"\",IF(OR(C7=\"\",C9=\"\"),\"\",IF(D$28=\"\",\"\",IF(AND(Beiträge!C1=FALSE,Beiträge!C2=TRUE),Beiträge!C8+10&\". Lebensjahr\",IF(AND(Beiträge!C1=TRUE,Beiträge!C2=FALSE),Beiträge!C8+10&\". Lebensjahr\")))))","v":""},{"$f":"IF(AND(Beiträge!C1=FALSE,Beiträge!C2=FALSE,Beiträge!C3=FALSE,Beiträge!C4=FALSE),\"\",IF(AND(Beiträge!C1=FALSE,Beiträge!C2=FALSE),\"\",IF(D$28=\"\",\"\",IF(AND(Beiträge!C1=TRUE,Beiträge!C2=TRUE),\"\",IF($C$7<21,\"\",IF($C$9=\"\",\"\",IF(AND(Beiträge!C1=TRUE,Beiträge!C2=FALSE),VLOOKUP(Beiträge!C8+10,Beiträge!A15:C106,3,0),IF(AND(Beiträge!C1=FALSE,Beiträge!C2=TRUE),VLOOKUP(Beiträge!C8+10,Beiträge!A15:C106,3,0)))))))))","v":""},{"$f":"IF(AND(Beiträge!C1=FALSE,Beiträge!C2=FALSE,Beiträge!C3=FALSE,Beiträge!C4=FALSE),\"\",IF(AND(Beiträge!C1=FALSE,Beiträge!C2=FALSE),\"\",IF(AND(Beiträge!C3=FALSE,Beiträge!C4=FALSE),\"\",IF(D$28=\"\",\"\",IF(AND(Beiträge!C1=TRUE,Beiträge!C2=TRUE),\"\",IF($C$7<21,\"\",IF($C$9=\"\",\"\",IF(OR(Beiträge!C1=TRUE,Beiträge!C2=TRUE),VLOOKUP(Beiträge!C5,Beiträge!F14:L85,3,0)))))))))","v":""}]
[null,null,null,{"$f":"IF(AND(Beiträge!C1=FALSE,Beiträge!C2=FALSE,Beiträge!C3=FALSE,Beiträge!C4=FALSE),\"\",IF(OR(C7=\"\",C9=\"\"),\"\",IF(D$28=\"\",\"\",IF(AND(Beiträge!C1=FALSE,Beiträge!C2=TRUE),Beiträge!C8+15&\". Lebensjahr\",IF(AND(Beiträge!C1=TRUE,Beiträge!C2=FALSE),Beiträge!C8+15&\". Lebensjahr\")))))","v":""},{"$f":"IF(AND(Beiträge!C1=FALSE,Beiträge!C2=FALSE,Beiträge!C3=FALSE,Beiträge!C4=FALSE),\"\",IF(AND(Beiträge!C1=FALSE,Beiträge!C2=FALSE),\"\",IF(D$28=\"\",\"\",IF(AND(Beiträge!C1=TRUE,Beiträge!C2=TRUE),\"\",IF($C$7<21,\"\",IF($C$9=\"\",\"\",IF(AND(Beiträge!C1=TRUE,Beiträge!C2=FALSE),VLOOKUP(Beiträge!C8+15,Beiträge!A15:C106,3,0),IF(AND(Beiträge!C1=FALSE,Beiträge!C2=TRUE),VLOOKUP(Beiträge!C8+15,Beiträge!A15:C106,3,0)))))))))","v":""},{"$f":"IF(AND(Beiträge!C1=FALSE,Beiträge!C2=FALSE,Beiträge!C3=FALSE,Beiträge!C4=FALSE),\"\",IF(AND(Beiträge!C1=FALSE,Beiträge!C2=FALSE),\"\",IF(AND(Beiträge!C3=FALSE,Beiträge!C4=FALSE),\"\",IF(D$28=\"\",\"\",IF(AND(Beiträge!C1=TRUE,Beiträge!C2=TRUE),\"\",IF($C$7<21,\"\",IF($C$9=\"\",\"\",IF(OR(Beiträge!C1=TRUE,Beiträge!C2=TRUE),VLOOKUP(Beiträge!C5,Beiträge!F14:L85,3,0)))))))))","v":""}]

{"sheet":"Beiträge","index":1,"n_rows":119,"n_cols":13,"rows_kept":119,"cut":false,"hidden":true,"merged":[]}
[null,null,false,"Arbeitgeber zahlt den Beitrag"]
[null,null,false,"Arbeitnehmer zahlt den Beitrag"]
[null,null,false,"Ihr Arbeitgeber zahlt den Beitrag der Sonderbedingungen"]
[null,null,false,"Sie möchten den Zusatzbeitrag der Sonderbedingungen abschlie0en"]
[null,null,{"$f":"YEAR(TODAY())-Eingabemaske!C7","v":2022},"Berechnung aktuelles Alter"]
[null,null,{"$f":"IF(YEAR(TODAY())-Eingabemaske!C5=0,5,IF(YEAR(TODAY())-Eingabemaske!C5=1,4,IF(YEAR(TODAY())-Eingabemaske!C5=2,3,IF(YEAR(TODAY())-Eingabemaske!C5=3,2,IF(YEAR(TODAY())-Eingabemaske!C5=4,1,IF(YEAR(TODAY())-Eingabemaske!C5=5,5,IF(YEAR(TODAY())-Eingabemaske!C5=6,4,IF(YEAR(TODAY())-Eingabemaske!C5=7,3,IF(YEAR(TODAY())-Eingabemaske!C5=8,2,IF(YEAR(TODAY())-Eingabemaske!C5=9,1,IF(YEAR(TODAY())-Eingabemaske!C5=10,5,\"\")))))))))))","v":""},"Berechnung 1. Beitragssprung"]
[null,null,{"$f":"Eingabemaske!C9","v":0}," 1. Beitrag Rentenalter"]
[null,null,{"$f":"IF(M12>0,M12,IF(M13>0,M13,IF(M14>0,M14,IF(M15>0,M15,IF(M16>0,M16,IF(M17>0,M17,IF(M18>0,M18,IF(M19>0,M19,IF(M20>0,M20,IF(M21>0,M21,\"\"))))))))))","v":{"$error":"#VALUE!"}},"Berechnung 1.Sprung im Rentenalter"]
[null,null,{"$f":"IF(C7-(C6+C5)<0,C7-C5,IF(C7-(C6+C5)<5,C7-(C6+C5),IF(C7-(C6+C5+5)<5,C7-(C6+C5+5),IF(C7-(C6+C5+10)<5,C7-(C6+C5+10),IF(C7-(C6+C5+15)<5,C7-(C6+C5+15),IF(C7-(C6+C5+20)<5,C7-(C6+C5+20),IF(C7-(C6+C5+25)<5,C7-(C6+C5+25),IF(C7-(C6+C5+30)<5,C7-(C6+C5+30),IF(C7-(C6+C5+35)<5,C7-(C6+C5+35),IF(C7-(C6+C5+40)<5,C7-(C6+C5+40),0))))))))))","v":{"$error":"#VALUE!"}},"Differenz Sprung Erwerbsleben zu Rentrenalter"]
[]
["Version","Gruppe",null,null,null,"Beiträge ZbKVA-K/Gruppe (nur als AWV abschließbar!)",null,null,"AWV ZbKVA-K/Gruppe",null,null,null,"Berechnung 1.Sprung im Rentenalter"]
[null,null,"Stand 01.05.2022",null,null,"Stand 01.05.2016",null,null,"Stand 01.05.2016",null,null,null,{"$f":"IF(C5+C6<=C7,0,C5+C6)","v":{"$error":"#VALUE!"}}]
["Alter/Tarif","ZbKV-K I","ZbKV-K II",null,null,null,null,null,null,null,null,null,{"$f":"IF(C5+C6+5<=C7,0,C5+C6+5)","v":{"$error":"#VALUE!"}}]
[0,5.54,4.74,null,null,"Eintr.alter","ZbKVA-K I/Gruppe","ZbKVA-K II/Gruppe","AWV 41%","AWV 41%",null,null,{"$f":"IF(C5+C6+10<=C7,0,C5+C6+10)","v":{"$error":"#VALUE!"}}]
[1,5.54,4.74,null,null,21,"38,66","32,69",15.85,13.4,null,null,{"$f":"IF(C5+C6+15<=C7,0,C5+C6+15)","v":{"$error":"#VALUE!"}}]
[2,5.54,4.74,null,null,22,"39,82","33,66",16.329999999999998,13.8,null,null,{"$f":"IF(C5+C6+20<=C7,0,C5+C6+20)","v":{"$error":"#VALUE!"}}]
[3,5.54,4.74,null,null,23,"40,97","34,63",16.8,14.2,null,null,{"$f":"IF(C5+C6+25<=C7,0,C5+C6+25)","v":{"$error":"#VALUE!"}}]
[4,5.54,4.74,null,null,24,"42,11","35,60",17.27,14.6,null,null,{"$f":"IF(C5+C6+30<=C7,0,C5+C6+30)","v":{"$error":"#VALUE!"}}]
[5,5.54,4.74,null,null,25,"43,24","36,57",17.73,14.99,null,null,{"$f":"IF(C5+C6+35<=C7,0,C5+C6+35)","v":{"$error":"#VALUE!"}}]
[6,5.54,4.74,null,null,26,"44,36","37,53",18.190000000000001,15.39,null,null,{"$f":"IF(C5+C6+40<=C7,0,C5+C6+40)","v":{"$error":"#VALUE!"}}]
[7,5.54,4.74,null,null,27,"45,47","38,49",18.64,15.78,null,null,{"$f":"IF(C5+C6+45<=C7,0,C5+C6+45)","v":{"$error":"#VALUE!"}}]
[8,5.54,4.74,null,null,28,"46,57","39,45",19.09,16.170000000000002]
[9,5.54,4.74,null,null,29,"47,66","40,40",19.54,16.559999999999999]
[10,5.54,4.74,null,null,30,"48,72","41,34",19.98,16.95]
[11,5.54,4.74,null,null,31,"49,77","42,28",20.41,17.329999999999998]
[12,5.54,4.74,null,null,32,"50,81","43,21",20.83,17.72]
[13,5.54,4.74,null,null,33,"51,84","44,14",21.25,18.100000000000001]
[14,5.54,4.74,null,null,34,"52,88","45,08",21.68,18.48]
[15,5.54,4.74,null,null,35,"53,96","46,05",22.12,18.88]
[16,5.54,4.74,null,null,36,"55,09","47,04",22.59,19.29]
[17,13.74,10.99,null,null,37,"56,28","48,08",23.07,19.71]
[18,14.68,11.75,null,null,38,"57,54","49,16",23.59,20.16]
[19,15.67,12.53,null,null,39,"58,88","50,30",24.14,20.62]
[20,16.649999999999999,13.32,null,null,40,"60,28","51,50",24.71,21.12]
[21,17.59,14.07,null,null,41,"61,73","52,73",25.31,21.62]
[22,18.53,14.82,null,null,42,"63,23","54,03",25.92,22.15]
[23,19.52,15.61,null,null,43,"64,79","55,37",26.56,22.7]
[24,20.46,16.36,null,null,44,"66,42","56,77",27.23,23.28]
[25,21.4,17.11,null,null,45,"68,11","58,23",27.93,23.87]
[26,22.38,17.899999999999999,null,null,46,"69,89","59,75",28.65,24.5]
[27,23.37,18.690000000000001,null,null,47,"71,74","61,33",29.41,25.15]
[28,24.31,19.440000000000001,null,null,48,"73,65","62,97",30.2,25.82]
[29,25.25,20.190000000000001,null,null,49,"75,65","64,69",31.02,26.52]
[30,26.01,20.8,null,null,50,"77,73","66,46",31.87,27.25]
[31,26.55,21.23,null,null,51,"79,88","68,30",32.75,28]
[32,26.9,21.52,null,null,52,"82,12","70,21",33.67,28.79]
[33,27.08,21.66,null,null,53,"84,44","72,20",34.619999999999997,29.6]
[34,27.08,21.66,null,null,54,"86,86","74,25",35.61,30.44]
[35,27.08,21.66,null,null,55,"89,36","76,39",36.64,31.32]
[36,27.08,21.66,null,null,56,"91,97","78,62",37.71,32.229999999999997]
[37,27.08,21.66,null,null,57,"94,64","80,90",38.799999999999997,33.17]
[38,27.08,21.66,null,null,58,"97,38","83,26",39.93,34.14]
[39,27.08,21.66,null,null,59,"100,18","85,68",41.07,35.130000000000003]
[40,27.08,21.66,null,null,60,"103,09","88,19",42.27,36.159999999999997]
[41,27.08,21.66,null,null,61,"106,08","90,79",43.49,37.22]
[42,27.08,21.66,null,null,62,"109,19","93,47",44.77,38.32]
[43,27.08,21.66,null,null,63,"112,44","96,27",46.1,39.47]
[44,27.08,21.66,null,null,64,"115,83","99,18",47.49,40.659999999999997]
[45,27.08,21.66,null,null,65,"119,14","102,03",48.85,41.83]
[46,27.08,21.66,null,null,66,"122,55","104,95",50.25,43.03]
[47,27.08,21.66,null,null,67,"126,05","107,96",51.68,44.26]
[48,27.08,21.66,null,null,68,"129,67","111,07",53.16,45.54]
[49,27.08,21.66,null,null,69,"133,42","114,27",54.7,46.85]
[50,27.93,22.34,null,null,70,"137,17","117,50",56.24,48.18]
[51,29.32,23.45,null,null,71,"140,95","120,73",57.79,49.5]
[52,31.29,25.03,null,null,72,"144,74","123,98",59.34,50.83]
[53,33.840000000000003,27.07,null,null,73,"148,54","127,24",60.9,52.17]
[54,37.06,29.64,null,null,74,"152,34","130,50",62.46,53.51]
[55,40.11,32.08,null,null,75,"156,09","133,71",64,54.82]
[56,43.37,34.69,null,null,76,"159,71","136,81",65.48,56.09]
[57,46.82,37.450000000000003,null,null,77,"163,18","139,78",66.900000000000006,57.31]
[58,50.49,40.380000000000003,null,null,78,"166,51","142,64",68.27,58.48]
[59,54.34,43.46,null,null,79,"169,69","145,36",69.569999999999993,59.6]
[60,58.37,46.68,null,null,80,"172,72","147,96",70.819999999999993,60.66]
[61,62.57,50.05,null,null,81,"175,60","150,42",72,61.67]
[62,66.959999999999994,53.55,null,null,82,"178,30","152,73",73.099999999999994,62.62]
[63,71.569999999999993,57.24,null,null,83,"180,79","154,87",74.12,63.5]
[64,76.36,61.07,null,null,84,"183,06","156,82",75.05,64.3]
[65,81.37,65.08,null,null,85,"185,04","158,52",75.87,64.989999999999995]
[66,86.56,69.23,null,null,86,"186,69","159,93",76.540000000000006,65.569999999999993]
[67,91.93,73.53,null,null,87,"187,92","160,98",77.05,66]
[68,97.48,77.97,null,null,88,"188,61","161,58",77.33,66.25]
[69,103.21,82.55,null,null,89,"188,61","161,58",77.33,66.25]
[70,109.16,87.31,null,null,90,"188,61","161,58",77.33,66.25]
[71,115.29,92.21,null,null,91,"188,61","161,58",77.33,66.25]
[72,121.65,97.29,null,null,92,"188,61","161,58",77.33,66.25]
[73,128.18,102.52,null,null,93,"188,61","161,58",77.33,66.25]
[74,134.9,107.89,null,null,94,"188,61","161,58",77.33,66.25]
[75,141.79,113.4,null,null,95,"188,61","161,58",77.33,66.25]
[76,148.86000000000001,119.06,null,null,96,"188,61","161,58",77.33,66.25]
[77,156.16,124.89,null,null,97,"188,61","161,58",77.33,66.25]
[78,163.63,130.87,null,null,98,"188,61","161,58",77.33,66.25]
[79,171.33,137.03,null,null,99,"188,61","161,58",77.33,66.25]
[80,177.55,142,null,null,100,"188,61","161,58",77.33,66.25]
[81,182.29,145.80000000000001,null,null,101,"188,61","161,58",77.33,66.25]
[82,185.47,148.34,null,null,102,"188,61","161,58",77.33,66.25]
[83,187.08,149.63,null,null,103,"188,61","161,58",77.33,66.25]
[84,187.08,149.63,null,null,104,"188,61","161,58",77.33,66.25]
[85,187.08,149.63,null,null,105,"188,61","161,58",77.33,66.25]
[86,187.08,149.63]
[87,187.08,149.63]
[88,187.08,149.63]
[89,187.08,149.63]
[90,187.08,149.63]
[91,187.08,149.63]
[92,187.08,149.63]
[93,187.08,149.63]
[94,187.08,149.63]
[95,187.08,149.63]
[96,187.08,149.63]
[97,187.08,149.63]
[98,187.08,149.63]
[99,187.08,149.63]
[100,187.08,149.63]
[101,187.08,149.63]
[102,187.08,149.63]
[103,187.08,149.63]
[104,187.08,149.63]
[105,187.08,149.63]